[Event "*** Titled Tuesday Blitz"]
[Site "Chess.com"]
[Date "2020.02.04"]
[Round "2"]
[White "Philosopherrr"]
[Black "tan275"]
[Result "1/2-1/2"]
[WhiteElo "2441"]
[BlackElo "2152"]
[TimeControl "180+2"]
[EndTime "9:26:02 PST"]
[Termination "Game drawn by repetition"]

1. e4 {[%clk 0:03:01.5]} 1... c6 {[%clk 0:02:55.3]} 2. d4 {[%clk 0:03:01.5]}
2... d5 {[%clk 0:02:53.8]} 3. exd5 {[%clk 0:03:03.4]} 3... cxd5 {[%clk
0:02:53.7]} 4. c4 {[%clk 0:03:01.8]} 4... Nf6 {[%clk 0:02:53.6]} 5. Nc3 {[%clk
0:03:01.1]} 5... g6 {[%clk 0:02:53.1]} 6. Nf3 {[%clk 0:02:58]} 6... Bg7 {[%clk
0:02:52.2]} 7. h3 {[%clk 0:02:52.6]} 7... O-O {[%clk 0:02:50.3]} 8. Be3 {[%clk
0:02:50.3]} 8... Nc6 {[%clk 0:02:47.4]} 9. Rc1 {[%clk 0:02:46]} 9... Be6 {[%clk
0:01:56.2]} 10. Ng5 {[%clk 0:02:37.8]} 10... Bf5 {[%clk 0:01:56.2]} 11. a3
{[%clk 0:02:36]} 11... dxc4 {[%clk 0:01:25.1]} 12. Bxc4 {[%clk 0:02:34.8]} 12...
h6 {[%clk 0:01:18.3]} 13. Nf3 {[%clk 0:02:30.9]} 13... Ne4 {[%clk 0:01:19]} 14.
O-O {[%clk 0:02:22.9]} 14... Rc8 {[%clk 0:01:15.7]} 15. Re1 {[%clk 0:02:19.8]}
15... Nxc3 {[%clk 0:01:12.8]} 16. Rxc3 {[%clk 0:02:20.1]} 16... Be4 {[%clk
0:01:12.8]} 17. Nd2 {[%clk 0:01:57]} 17... Bd5 {[%clk 0:01:07.9]} 18. Bf1 {[%clk
0:01:48.9]} 18... Nxd4 {[%clk 0:00:58.8]} 19. Rxc8 {[%clk 0:01:48.6]} 19... Qxc8
{[%clk 0:00:59.1]} 20. Bxd4 {[%clk 0:01:48.1]} 20... Bxd4 {[%clk 0:00:59.6]} 21.
Nf3 {[%clk 0:01:45.6]} 21... Bxf3 {[%clk 0:00:56.4]} 22. Qxd4 {[%clk 0:01:45.1]}
22... Bc6 {[%clk 0:00:47.1]} 23. Rxe7 {[%clk 0:01:44.3]} 23... Qf5 {[%clk
0:00:39.1]} 24. Qxa7 {[%clk 0:01:33]} 24... Qf6 {[%clk 0:00:35]} 25. Re2 {[%clk
0:01:29.4]} 25... Rd8 {[%clk 0:00:22]} 26. Qe3 {[%clk 0:01:28.2]} 26... Rd1
{[%clk 0:00:21.5]} 27. Rd2 {[%clk 0:01:12.5]} 27... Rxd2 {[%clk 0:00:17.5]} 28.
Qxd2 {[%clk 0:01:13.3]} 28... Kg7 {[%clk 0:00:18.4]} 29. Qc3 {[%clk 0:01:10.4]}
29... Qxc3 {[%clk 0:00:15.7]} 30. bxc3 {[%clk 0:01:11]} 30... Kf6 {[%clk
0:00:17.6]} 31. Bc4 {[%clk 0:01:11.7]} 31... Be8 {[%clk 0:00:16.7]} 32. f4
{[%clk 0:01:11.9]} 32... Kf5 {[%clk 0:00:16.5]} 33. Bd5 {[%clk 0:01:07.8]} 33...
b6 {[%clk 0:00:12.6]} 34. g3 {[%clk 0:01:09]} 34... Kf6 {[%clk 0:00:10.5]} 35.
Kf2 {[%clk 0:01:09.7]} 35... Ke7 {[%clk 0:00:11.6]} 36. Ke3 {[%clk 0:01:10.7]}
36... Kd6 {[%clk 0:00:13.1]} 37. Kd4 {[%clk 0:01:12.1]} 37... f6 {[%clk
0:00:14]} 38. h4 {[%clk 0:01:12.7]} 38... g5 {[%clk 0:00:13.9]} 39. hxg5 {[%clk
0:01:07.9]} 39... hxg5 {[%clk 0:00:14.7]} 40. Be4 {[%clk 0:01:08.6]} 40... gxf4
{[%clk 0:00:14.6]} 41. gxf4 {[%clk 0:01:09.4]} 41... Bd7 {[%clk 0:00:15.6]} 42.
Kc4 {[%clk 0:01:10.1]} 42... Be8 {[%clk 0:00:13.7]} 43. Kb4 {[%clk 0:01:11.4]}
43... Bd7 {[%clk 0:00:14.4]} 44. c4 {[%clk 0:01:12.4]} 44... Be8 {[%clk
0:00:15.3]} 45. a4 {[%clk 0:01:13.3]} 45... Bd7 {[%clk 0:00:16.4]} 46. Bg6
{[%clk 0:01:09.9]} 46... Bc6 {[%clk 0:00:16.7]} 47. Bf7 {[%clk 0:01:11.1]} 47...
Bd7 {[%clk 0:00:16.1]} 48. Bd5 {[%clk 0:01:05.9]} 48... Be8 {[%clk 0:00:16.7]}
49. Bb7 {[%clk 0:01:05.8]} 49... Bd7 {[%clk 0:00:17.5]} 50. Ba6 {[%clk
0:01:06.6]} 50... Be8 {[%clk 0:00:16.5]} 51. Bb5 {[%clk 0:01:06.4]} 51... Bf7
{[%clk 0:00:17]} 52. Ba6 {[%clk 0:00:51.6]} 52... Be8 {[%clk 0:00:17.9]} 53. Bb7
{[%clk 0:00:43]} 53... Bd7 {[%clk 0:00:18]} 54. Be4 {[%clk 0:00:40.1]} 54... Be8
{[%clk 0:00:18.9]} 55. Bc2 {[%clk 0:00:39.1]} 55... Bd7 {[%clk 0:00:18.2]} 56.
Kc3 {[%clk 0:00:33.6]} 56... Kc5 {[%clk 0:00:18]} 57. Bb3 {[%clk 0:00:34.5]}
57... Be8 {[%clk 0:00:18]} 58. Bd1 {[%clk 0:00:32.1]} 58... Bc6 {[%clk
0:00:18.3]} 59. Kd3 {[%clk 0:00:32.1]} 59... Bb7 {[%clk 0:00:11]} 60. Bb3 {[%clk
0:00:28]} 60... Bc6 {[%clk 0:00:11.4]} 61. Ke3 {[%clk 0:00:28.4]} 61... Bb7
{[%clk 0:00:07.9]} 62. Ba2 {[%clk 0:00:26.5]} 62... Bc6 {[%clk 0:00:08.1]} 63.
Kd3 {[%clk 0:00:27.1]} 63... Bb7 {[%clk 0:00:09.2]} 64. Ke3 {[%clk 0:00:23.5]}
64... Bc6 {[%clk 0:00:09.6]} 65. Kf2 {[%clk 0:00:24.8]} 65... Bxa4 {[%clk
0:00:10.2]} 66. Kg3 {[%clk 0:00:25.1]} 66... Bc6 {[%clk 0:00:10.7]} 67. Kg4
{[%clk 0:00:26]} 67... Kd6 {[%clk 0:00:11.4]} 68. Kf5 {[%clk 0:00:27.1]} 68...
Ke7 {[%clk 0:00:12.6]} 69. Kg6 {[%clk 0:00:28.3]} 69... Be4+ {[%clk 0:00:12.9]}
70. Kg7 {[%clk 0:00:29.5]} 70... Bd3 {[%clk 0:00:13.8]} 71. Bb3 {[%clk
0:00:29.8]} 71... Be2 {[%clk 0:00:14.4]} 72. Kg6 {[%clk 0:00:29.1]} 72... Bd3+
{[%clk 0:00:15.1]} 73. Kg7 {[%clk 0:00:29.8]} 73... Bf1 {[%clk 0:00:16.1]} 74.
Ba2 {[%clk 0:00:29.7]} 74... Bd3 {[%clk 0:00:16.8]} 75. Bb3 {[%clk 0:00:29.4]}
1/2-1/2

[Event "*** Titled Tuesday Blitz"]
[Site "Chess.com"]
[Date "2020.02.04"]
[Round "2"]
[White "kinga2008"]
[Black "SnekkerAndersen"]
[Result "1-0"]
[WhiteElo "1944"]
[BlackElo "2368"]
[TimeControl "180+2"]
[EndTime "9:26:28 PST"]
[Termination "kinga2008 won by resignation"]

1. e4 {[%clk 0:03:01.9]} 1... d6 {[%clk 0:03:00.3]} 2. d4 {[%clk 0:02:47.8]}
2... Nf6 {[%clk 0:02:56]} 3. Nc3 {[%clk 0:02:42.8]} 3... e5 {[%clk 0:02:45.7]}
4. dxe5 {[%clk 0:02:41.8]} 4... dxe5 {[%clk 0:02:47.6]} 5. Qxd8+ {[%clk
0:02:42.6]} 5... Kxd8 {[%clk 0:02:49.4]} 6. Bc4 {[%clk 0:02:43.7]} 6... Be6
{[%clk 0:02:49.3]} 7. Bxe6 {[%clk 0:02:44]} 7... fxe6 {[%clk 0:02:51.2]} 8. Bg5
{[%clk 0:02:38.6]} 8... Bd6 {[%clk 0:02:50.9]} 9. O-O-O {[%clk 0:02:36.9]} 9...
Ke7 {[%clk 0:02:50.7]} 10. Nb5 {[%clk 0:02:35.9]} 10... Nc6 {[%clk 0:02:49.7]}
11. Ne2 {[%clk 0:02:22.4]} 11... a6 {[%clk 0:02:48.7]} 12. Nxd6 {[%clk
0:02:21.6]} 12... cxd6 {[%clk 0:02:50.6]} 13. Ng3 {[%clk 0:02:21]} 13... Rhc8
{[%clk 0:02:46.5]} 14. Rd2 {[%clk 0:02:20.4]} 14... h6 {[%clk 0:02:38.4]} 15.
Be3 {[%clk 0:02:06.1]} 15... d5 {[%clk 0:02:19.2]} 16. Bc5+ {[%clk 0:01:56.1]}
16... Kf7 {[%clk 0:02:18.5]} 17. exd5 {[%clk 0:01:46.6]} 17... exd5 {[%clk
0:02:20.4]} 18. Nf5 {[%clk 0:01:42.9]} 18... Rc7 {[%clk 0:02:14]} 19. Rhd1
{[%clk 0:01:28.5]} 19... Ke6 {[%clk 0:02:13.5]} 20. Ne3 {[%clk 0:01:15.8]} 20...
d4 {[%clk 0:02:09.5]} 21. Nc4 {[%clk 0:01:12.4]} 21... Na5 {[%clk 0:01:36.5]}
22. Nxa5 {[%clk 0:00:59.7]} 22... Rxc5 {[%clk 0:01:31.7]} 23. Nb3 {[%clk
0:00:59.3]} 23... Rc6 {[%clk 0:01:32]} 24. f4 {[%clk 0:00:47]} 24... Rd8 {[%clk
0:01:00.1]} 25. fxe5 {[%clk 0:00:45.5]} 25... Kxe5 {[%clk 0:01:02]} 26. Nxd4
{[%clk 0:00:40.1]} 26... Rcd6 {[%clk 0:01:02.1]} 27. Nf3+ {[%clk 0:00:16.1]}
27... Ke6 {[%clk 0:01:02.6]} 28. Nd4+ {[%clk 0:00:17.3]} 28... Kf7 {[%clk
0:01:01.7]} 29. Nf5 {[%clk 0:00:15.7]} 29... Rxd2 {[%clk 0:00:58.9]} 30. Rxd2
{[%clk 0:00:14.6]} 30... Rb8 {[%clk 0:00:40.7]} 31. Rd6 {[%clk 0:00:12.1]} 31...
Ne4 {[%clk 0:00:40.8]} 32. Rd4 {[%clk 0:00:06.3]} 32... Nc5 {[%clk 0:00:34.9]}
33. Rc4 {[%clk 0:00:05.8]} 33... Ne6 {[%clk 0:00:35.2]} 34. Nd4 {[%clk
0:00:04.3]} 34... b5 {[%clk 0:00:28.1]} 35. Rb4 {[%clk 0:00:04.1]} 35... Nc5
{[%clk 0:00:24.4]} 36. Nc6 {[%clk 0:00:04.4]} 36... Re8 {[%clk 0:00:23.3]} 37.
Kd2 {[%clk 0:00:03.8]} 37... Ne4+ {[%clk 0:00:20.7]} 38. Kd1 {[%clk 0:00:03.2]}
38... Nf2+ {[%clk 0:00:20.5]} 39. Kd2 {[%clk 0:00:03.9]} 39... Rc8 {[%clk
0:00:20.4]} 40. Nd4 {[%clk 0:00:03.7]} 40... Ne4+ {[%clk 0:00:20.2]} 41. Ke3
{[%clk 0:00:05.2]} 41... Nd6 {[%clk 0:00:22.1]} 42. c3 {[%clk 0:00:06]} 42...
Nc4+ {[%clk 0:00:23]} 43. Kd3 {[%clk 0:00:05.9]} 43... Re8 {[%clk 0:00:24.9]}
44. b3 {[%clk 0:00:05]} 44... Nb2+ {[%clk 0:00:19.4]} 45. Kd2 {[%clk 0:00:04.9]}
45... Kg6 {[%clk 0:00:17.3]} 46. Kc2 {[%clk 0:00:06.1]} 46... Rf8 {[%clk
0:00:18]} 47. Kxb2 {[%clk 0:00:06.8]} 47... Rf2+ {[%clk 0:00:19.7]} 48. Nc2
{[%clk 0:00:07.2]} 48... Rxg2 {[%clk 0:00:21.6]} 49. h3 {[%clk 0:00:07.9]} 49...
Rg3 {[%clk 0:00:22.1]} 50. Rg4+ {[%clk 0:00:09.1]} 50... Rxg4 {[%clk 0:00:23.3]}
51. hxg4 {[%clk 0:00:10.7]} 51... Kg5 {[%clk 0:00:25.2]} 52. c4 {[%clk
0:00:08.9]} 52... bxc4 {[%clk 0:00:25.6]} 53. bxc4 {[%clk 0:00:10.8]} 53... Kxg4
{[%clk 0:00:27.3]} 54. Nb4 {[%clk 0:00:08.8]} 54... h5 {[%clk 0:00:26]} 55. c5
{[%clk 0:00:10.1]} 55... Kf5 {[%clk 0:00:26.4]} 56. Nd3 {[%clk 0:00:07.8]} 56...
h4 {[%clk 0:00:21.6]} 57. Nf2 {[%clk 0:00:06.5]} 57... Ke5 {[%clk 0:00:18.8]}
58. Kc3 {[%clk 0:00:07.7]} 58... Kd5 {[%clk 0:00:18.3]} 59. Kb4 {[%clk
0:00:08.1]} 59... Kc6 {[%clk 0:00:17.7]} 60. Ng4 {[%clk 0:00:09]} 60... h3
{[%clk 0:00:17.5]} 61. Kc4 {[%clk 0:00:08.2]} 61... g5 {[%clk 0:00:17.8]} 62.
Nh2 {[%clk 0:00:08.6]} 62... a5 {[%clk 0:00:18.5]} 63. a4 {[%clk 0:00:09.5]}
63... Kc7 {[%clk 0:00:19]} 64. Kb5 {[%clk 0:00:10.6]} 64... Kd7 {[%clk
0:00:19.2]} 65. Kxa5 {[%clk 0:00:09.2]} 65... Kc6 {[%clk 0:00:20.4]} 66. Kb4
{[%clk 0:00:09.8]} 66... Kd5 {[%clk 0:00:22.1]} 67. Kb5 {[%clk 0:00:10.4]} 67...
Ke4 {[%clk 0:00:22.4]} 68. c6 {[%clk 0:00:11.7]} 68... g4 {[%clk 0:00:24]} 69.
Nxg4 {[%clk 0:00:11.2]} 69... Kf3 {[%clk 0:00:21.5]} 70. c7 {[%clk 0:00:07.7]}
70... h2 {[%clk 0:00:19.8]} 71. Nxh2+ {[%clk 0:00:08.1]} 1-0

[Event "*** Titled Tuesday Blitz"]
[Site "Chess.com"]
[Date "2020.02.04"]
[Round "2"]
[White "Hydrargyrum_Girl"]
[Black "kesarev"]
[Result "1/2-1/2"]
[WhiteElo "2173"]
[BlackElo "2473"]
[TimeControl "180+2"]
[EndTime "9:26:55 PST"]
[Termination "Game drawn - insufficient material"]

1. d4 {[%clk 0:03:01.9]} 1... Nc6 {[%clk 0:02:56.4]} 2. e4 {[%clk 0:02:59.3]}
2... e5 {[%clk 0:02:57]} 3. dxe5 {[%clk 0:02:58.6]} 3... Nxe5 {[%clk 0:02:57.9]}
4. Nf3 {[%clk 0:03:00.2]} 4... Nxf3+ {[%clk 0:02:58.2]} 5. Qxf3 {[%clk
0:03:02.1]} 5... Qf6 {[%clk 0:02:59.2]} 6. Be2 {[%clk 0:02:55]} 6... Bb4+ {[%clk
0:02:47.1]} 7. c3 {[%clk 0:02:45.4]} 7... Qxf3 {[%clk 0:02:45.1]} 8. Bxf3 {[%clk
0:02:44.5]} 8... Bc5 {[%clk 0:02:46.4]} 9. O-O {[%clk 0:02:44.1]} 9... d6 {[%clk
0:02:45.8]} 10. Bf4 {[%clk 0:02:31.1]} 10... Ne7 {[%clk 0:02:38.3]} 11. Nd2
{[%clk 0:02:26.9]} 11... a5 {[%clk 0:02:33.7]} 12. Nb3 {[%clk 0:02:22.8]} 12...
Bb6 {[%clk 0:02:33.5]} 13. Rfe1 {[%clk 0:02:22.1]} 13... Nc6 {[%clk 0:02:22.8]}
14. e5 {[%clk 0:01:55.5]} 14... Nxe5 {[%clk 0:02:16.5]} 15. Bxe5 {[%clk
0:01:55.6]} 15... dxe5 {[%clk 0:02:17.4]} 16. Rxe5+ {[%clk 0:01:57.2]} 16... Be6
{[%clk 0:02:05.9]} 17. Bxb7 {[%clk 0:01:51.8]} 17... Rd8 {[%clk 0:02:06.6]} 18.
Bc6+ {[%clk 0:01:30.9]} 18... Ke7 {[%clk 0:02:06.4]} 19. Nxa5 {[%clk 0:01:20.9]}
19... Rd2 {[%clk 0:02:02.5]} 20. Nc4 {[%clk 0:01:07.4]} 20... Bxf2+ {[%clk
0:01:25.5]} 21. Kf1 {[%clk 0:00:58.2]} 21... Rc2 {[%clk 0:01:06.7]} 22. Ba4
{[%clk 0:00:50.5]} 22... Bd4 {[%clk 0:00:37.3]} 23. Rxe6+ {[%clk 0:00:36.8]}
23... fxe6 {[%clk 0:00:38.1]} 24. Bxc2 {[%clk 0:00:38.1]} 24... Rf8+ {[%clk
0:00:39]} 25. Ke1 {[%clk 0:00:34.3]} 25... Ba7 {[%clk 0:00:35.3]} 26. Rd1 {[%clk
0:00:27.2]} 26... Rf2 {[%clk 0:00:35.2]} 27. Rd2 {[%clk 0:00:28.3]} 27... Rf4
{[%clk 0:00:35.4]} 28. Ne5 {[%clk 0:00:26.1]} 28... Kf6 {[%clk 0:00:34.4]} 29.
Nf3 {[%clk 0:00:25.6]} 29... Rg4 {[%clk 0:00:32]} 30. Kf1 {[%clk 0:00:25.5]}
30... h5 {[%clk 0:00:30.9]} 31. Rd7 {[%clk 0:00:25]} 31... Bb6 {[%clk
0:00:31.5]} 32. Bb3 {[%clk 0:00:24.1]} 32... Rf4 {[%clk 0:00:29.5]} 33. Rd3
{[%clk 0:00:22.6]} 33... g5 {[%clk 0:00:28.3]} 34. Ke2 {[%clk 0:00:23.1]} 34...
g4 {[%clk 0:00:29]} 35. g3 {[%clk 0:00:22.9]} 35... Re4+ {[%clk 0:00:27]} 36.
Kd2 {[%clk 0:00:20.3]} 36... gxf3 {[%clk 0:00:27]} 37. Rxf3+ {[%clk 0:00:22.2]}
37... Ke5 {[%clk 0:00:27.4]} 38. Kd3 {[%clk 0:00:23.2]} 38... Re1 {[%clk
0:00:27.7]} 39. Rf8 {[%clk 0:00:20.5]} 39... Kd6 {[%clk 0:00:23.6]} 40. Rh8
{[%clk 0:00:20.9]} 40... Rb1 {[%clk 0:00:21]} 41. Rxh5 {[%clk 0:00:21]} 41...
Rxb2 {[%clk 0:00:22.3]} 42. g4 {[%clk 0:00:22.4]} 42... Rg2 {[%clk 0:00:21.6]}
43. h3 {[%clk 0:00:23.3]} 43... c5 {[%clk 0:00:19.4]} 44. Rh6 {[%clk 0:00:23.6]}
44... Kc7 {[%clk 0:00:18.3]} 45. Bxe6 {[%clk 0:00:23.7]} 45... Rg3+ {[%clk
0:00:18.9]} 46. Kc4 {[%clk 0:00:24.9]} 46... Ba5 {[%clk 0:00:20.3]} 47. Kxc5
{[%clk 0:00:25.1]} 47... Bxc3 {[%clk 0:00:21.3]} 48. a4 {[%clk 0:00:25]} 48...
Be1 {[%clk 0:00:20.9]} 49. Rh7+ {[%clk 0:00:25.6]} 49... Kd8 {[%clk 0:00:22]}
50. Kd6 {[%clk 0:00:23.9]} 50... Rd3+ {[%clk 0:00:22.8]} 51. Bd5 {[%clk
0:00:24.8]} 51... Bg3+ {[%clk 0:00:23.7]} 52. Kc6 {[%clk 0:00:24.8]} 52... Rc3+
{[%clk 0:00:24.5]} 53. Kb5 {[%clk 0:00:25.7]} 53... Bf2 {[%clk 0:00:24.5]} 54.
Be6 {[%clk 0:00:22.2]} 54... Rc5+ {[%clk 0:00:25.1]} 55. Kb4 {[%clk 0:00:22.4]}
55... Re5 {[%clk 0:00:26.4]} 56. Bf5 {[%clk 0:00:22.8]} 56... Re3 {[%clk
0:00:26.6]} 57. a5 {[%clk 0:00:23.5]} 57... Be1+ {[%clk 0:00:27.7]} 58. Kb5
{[%clk 0:00:24.2]} 58... Re5+ {[%clk 0:00:28.9]} 59. Kb6 {[%clk 0:00:22.5]}
59... Bxa5+ {[%clk 0:00:29.7]} 60. Kc6 {[%clk 0:00:23.2]} 60... Be1 {[%clk
0:00:28.5]} 61. Kd6 {[%clk 0:00:24.3]} 61... Bg3 {[%clk 0:00:28.7]} 62. Kc6
{[%clk 0:00:21.5]} 62... Re1 {[%clk 0:00:24.7]} 63. h4 {[%clk 0:00:19.7]} 63...
Ke8 {[%clk 0:00:24]} 64. h5 {[%clk 0:00:20.3]} 64... Kf8 {[%clk 0:00:23.9]} 65.
Kd7 {[%clk 0:00:17.7]} 65... Kg8 {[%clk 0:00:22.9]} 66. Kc6 {[%clk 0:00:16.9]}
66... Rd1 {[%clk 0:00:22.2]} 67. Rd7 {[%clk 0:00:17.4]} 67... Rc1+ {[%clk
0:00:22.4]} 68. Kd5 {[%clk 0:00:17.9]} 68... Re1 {[%clk 0:00:23.6]} 69. Rd8+
{[%clk 0:00:17.3]} 69... Kg7 {[%clk 0:00:24.4]} 70. Ra8 {[%clk 0:00:17.2]} 70...
Kf6 {[%clk 0:00:22.6]} 71. Ra6+ {[%clk 0:00:18.2]} 71... Kg5 {[%clk 0:00:23]}
72. h6 {[%clk 0:00:19.5]} 72... Rh1 {[%clk 0:00:23.4]} 73. h7 {[%clk 0:00:20.6]}
73... Be1 {[%clk 0:00:20.8]} 74. Ra8 {[%clk 0:00:20]} 74... Bc3 {[%clk
0:00:21.4]} 75. Rg8+ {[%clk 0:00:20.3]} 75... Kf4 {[%clk 0:00:22.1]} 76. Ke6
{[%clk 0:00:21.5]} 76... Rh6+ {[%clk 0:00:22.1]} 77. Kf7 {[%clk 0:00:22.4]}
77... Rf6+ {[%clk 0:00:22.8]} 78. Ke7 {[%clk 0:00:23.9]} 78... Rh6 {[%clk
0:00:23.9]} 79. Rc8 {[%clk 0:00:22.6]} 79... Bf6+ {[%clk 0:00:24.1]} 80. Kf7
{[%clk 0:00:23.3]} 80... Bb2 {[%clk 0:00:25.2]} 81. Rc4+ {[%clk 0:00:23.4]}
81... Kg5 {[%clk 0:00:26.1]} 82. Rc8 {[%clk 0:00:23.7]} 82... Rf6+ {[%clk
0:00:26.7]} 83. Ke7 {[%clk 0:00:24.8]} 83... Rh6 {[%clk 0:00:27.5]} 84. Rg8+
{[%clk 0:00:25.4]} 84... Kf4 {[%clk 0:00:28.3]} 85. Kf7 {[%clk 0:00:23.2]} 85...
Rf6+ {[%clk 0:00:28.4]} 86. Ke8 {[%clk 0:00:23.6]} 86... Rh6 {[%clk 0:00:29]}
87. Bb1 {[%clk 0:00:23]} 87... Rh1 {[%clk 0:00:28.5]} 88. Bc2 {[%clk 0:00:21.9]}
88... Ke5 {[%clk 0:00:28]} 89. g5 {[%clk 0:00:21.6]} 89... Ke6 {[%clk 0:00:28]}
90. Bb3+ {[%clk 0:00:19.5]} 90... Kf5 {[%clk 0:00:28.5]} 91. g6 {[%clk 0:00:21]}
91... Kf6 {[%clk 0:00:28.8]} 92. g7 {[%clk 0:00:21.1]} 92... Rxh7 {[%clk
0:00:26.9]} 93. Rf8+ {[%clk 0:00:22.3]} 93... Kxg7 {[%clk 0:00:28.1]} 94. Rf7+
{[%clk 0:00:23.5]} 94... Kh6 {[%clk 0:00:29]} 95. Rxh7+ {[%clk 0:00:24.3]} 95...
Kxh7 {[%clk 0:00:30.1]} 1/2-1/2